bitfinex/quotes_SOLUSD_20240620
["timestamp","ask_amount","ask_price","bid_price","bid_amount"]
[1718870134455,0.51,137.54,137.48,20.0]
[1718870134860,0.51,137.54,137.47,21.33]
[1718870135070,6.538,137.55,137.48,1.45301772]
[1718870135273,6.538,137.55,137.48,21.45301772]
[1718870135476,6.538,137.55,137.49,1.45291203]
[1718870135661,6.538,137.55,137.48,20.0]
[1718870135858,6.538,137.55,137.44,15.4766]
[1718870136063,6.538,137.55,137.45,21.33]
[1718870136257,6.538,137.55,137.46,20.0]
[1718870136464,0.51,137.54,137.46,20.0]
[1718870137484,0.51,137.54,137.47,0.17]
[1718870137687,6.538,137.55,137.48,21.33]
[1718870137854,6.538,137.55,137.49,20.0]
[1718870138869,0.51,137.54,137.49,20.0]
[1718870139556,0.51,137.54,137.48,21.33]
[1718870139975,6.4605,137.57,137.49,0.17]
[1718870140178,6.4605,137.57,137.49,20.17]
[1718870141495,0.51,137.56,137.49,20.17]
[1718870141990,0.51,137.56,137.49,36.1694]
[1718870143675,0.51,137.56,137.49,15.9994]
[1718870143887,16.2544,137.55,137.48,21.33]
[1718870144068,0.51,137.54,137.48,21.33]
[1718870145270,0.51,137.54,137.46,21.33]
[1718870146296,0.51,137.54,137.47,20.0]
[1718870146585,15.1446,137.56,137.5,0.17]
[1718870146779,6.4605,137.57,137.52,21.33]
[1718870147684,6.4605,137.57,137.5,0.17]
[1718870147865,6.4605,137.57,137.49,20.17]
[1718870148070,0.51,137.56,137.49,20.17]
[1718870148988,0.17,137.56,137.49,20.17]
[1718870149168,0.34,137.56,137.49,20.17]
[1718870149995,0.34,137.56,137.49,20.0]
[1718870150675,0.17,137.55,137.49,20.0]
[1718870150878,0.34,137.56,137.49,20.0]
[1718870151682,0.34,137.56,137.5,0.17]
[1718870152157,0.24467337,137.57,137.5,0.17]
[1718870152365,0.07467337,137.57,137.5,0.17]
[1718870152766,15.4811,137.59,137.45,22.3406]
[1718870152974,22.38844582,137.58,137.45,16.2544]
[1718870153289,2.38504135,137.57,137.46,20.0]
[1718870154066,0.34,137.56,137.46,20.0]
[1718870154268,0.17,137.55,137.47,0.17]
[1718870154884,0.34,137.56,137.48,21.33]
[1718870155093,0.17,137.55,137.49,20.17]
[1718870157588,2.38504135,137.57,137.49,20.17]
[1718870158095,21.7267,137.59,137.49,20.17]
[1718870158988,0.17,137.58,137.49,20.17]
[1718870159189,0.51,137.58,137.49,20.17]
[1718870159693,0.51,137.58,137.49,0.17]
[1718870159878,21.33,137.65,137.49,0.17]
[1718870159879,21.30035104,137.61,137.51,21.5]
[1718870160077,21.30035104,137.61,137.53,0.17]
[1718870160078,16.1386,137.61,137.53,0.17]
[1718870160471,16.1386,137.61,137.52,0.17]
[1718870161468,0.51,137.6,137.52,0.17]
[1718870163081,22.2825,137.63,137.55,0.17]
[1718870163290,7.292,137.74,137.58,0.17]
[1718870163291,22.0305,137.68,137.58,0.17]
[1718870163681,22.0305,137.68,137.6,21.33]
[1718870164184,22.0305,137.68,137.61,0.17]
[1718870164397,15.2299,137.71,137.63,21.33]
[1718870166091,15.2299,137.71,137.64,0.17]
[1718870166276,6.5034,137.72,137.64,0.17]
[1718870166596,6.5034,137.72,137.64,20.17]
[1718870167172,6.5034,137.72,137.64,0.17]
[1718870168799,15.7168,137.75,137.67,0.17]
[1718870169500,15.7168,137.75,137.66,21.33]
[1718870169895,15.7168,137.75,137.67,0.17]
[1718870170102,0.51,137.74,137.67,0.17]
[1718870170488,0.51,137.74,137.64,0.17]
[1718870170670,0.51,137.74,137.64,20.17]
[1718870170871,0.17,137.73,137.63,21.33]
[1718870171193,0.17,137.69,137.63,21.33]
[1718870171395,0.68,137.69,137.63,21.33]
[1718870171702,20.68,137.69,137.6,21.33]
[1718870171902,20.68,137.69,137.6,27.9359]
[1718870172910,20.68,137.69,137.57,27.3468]
[1718870172911,0.51,137.69,137.57,27.3468]
[1718870173193,0.51,137.69,137.6,21.33]
[1718870174385,0.17,137.68,137.59,20.68]
[1718870174582,3.06167084,137.68,137.57,27.3468]
[1718870175491,3.06167084,137.68,137.57,21.33]
[1718870175688,0.17,137.66,137.57,21.33]
[1718870175892,0.17,137.66,137.58,20.0]
[1718870176082,0.51,137.66,137.58,20.0]
[1718870176502,0.51,137.66,137.55,36.2623]
[1718870176797,0.17,137.65,137.55,37.0823]
[1718870177104,0.68,137.65,137.56,6.6059]
[1718870177407,16.9364,137.65,137.56,6.6059]
[1718870179003,2.38167084,137.67,137.58,21.33]
[1718870179209,2.38167084,137.67,137.59,0.17]
[1718870180983,2.38167084,137.67,137.61,21.33]
[1718870182101,0.34,137.66,137.61,21.33]
[1718870182286,6.7267,137.65,137.56,6.6059]
[1718870182493,0.51,137.64,137.56,6.6059]
[1718870182694,2.38167084,137.67,137.56,6.6059]
[1718870183007,0.17,137.66,137.56,6.6059]
[1718870183312,15.886,137.65,137.56,6.6059]
[1718870183515,0.17,137.63,137.54,21.33]
[1718870183705,20.17,137.63,137.51,21.33]
[1718870183896,0.17,137.61,137.51,15.7419]
[1718870184093,20.51,137.61,137.51,15.7419]
[1718870184414,20.51,137.61,137.5,21.33]
[1718870184415,2.54900565,137.6,137.5,21.33]
[1718870184614,0.34,137.59,137.5,41.84]
[1718870184802,0.17,137.58,137.5,41.84]
[1718870185185,0.17,137.58,137.51,0.17]
[1718870187095,2.37900565,137.6,137.54,21.33]
[1718870187395,2.37900565,137.6,137.57,21.33]
[1718870187990,6.2265,137.64,137.57,21.33]
[1718870189117,16.2847,137.62,137.49,6.6169]
[1718870189296,1.71093934,137.61,137.51,22.28919813]
[1718870189498,0.17,137.58,137.48,36.4838]
[1718870189706,0.51,137.58,137.48,21.33]
[1718870190012,0.17,137.57,137.48,21.33]
[1718870190223,2.39093934,137.57,137.48,21.33]
[1718870191699,2.39093934,137.57,137.47,6.6419]
[1718870191700,0.17,137.53,137.38,15.3499]
[1718870192004,0.17,137.53,137.43,21.33]
[1718870192213,0.17,137.52,137.43,21.33]
[1718870192413,0.51,137.52,137.43,21.33]
[1718870193516,0.51,137.52,137.42,15.7396]
[1718870195918,0.51,137.52,137.43,0.17]
[1718870196801,0.51,137.52,137.42,15.7396]
[1718870201328,8.295593,137.51,137.39,24.94]
[1718870201506,2.224293,137.5,137.39,24.94]
[1718870201819,0.17,137.49,137.39,24.94]
[1718870202409,0.17,137.49,137.38,20.0]
[1718870203225,0.17,137.49,137.39,0.17]
[1718870203723,15.9447,137.48,137.39,0.17]
[1718870203907,0.51,137.47,137.38,20.0]
[1718870204107,0.51,137.46,137.38,20.0]
[1718870204610,0.51,137.46,137.34,31.4603]
[1718870205226,0.51,137.46,137.35,0.17]
[1718870205451,0.51,137.46,137.35,15.6247]
[1718870206630,0.51,137.46,137.25,24.94]
[1718870206631,6.4284,137.45,137.25,24.94]
[1718870206801,0.17,137.41,137.25,24.94]
[1718870206999,0.17,137.39,137.25,24.94]
[1718870207202,0.17,137.37,137.25,24.94]
[1718870207406,0.68,137.37,137.25,24.94]
[1718870208416,2.38844582,137.36,137.25,24.94]
[1718870208604,0.51,137.35,137.25,24.94]
[1718870210515,20.0,137.39,137.25,24.94]
[1718870211006,22.38844582,137.39,137.26,0.17]
[1718870212029,3.06844582,137.38,137.26,0.17]
[1718870212813,2.38844582,137.37,137.26,0.17]
[1718870213012,0.51,137.36,137.26,0.17]
[1718870214809,6.6383,137.35,137.25,24.94]
[1718870215018,0.51,137.34,137.25,24.94]
[1718870215732,0.51,137.34,137.22,47.77838787]
[1718870215733,16.8365,137.33,137.22,25.27818787]
[1718870216038,6.0971,137.31,137.2,24.94]
[1718870216334,0.17,137.3,137.2,41.7765]
[1718870216504,6.0971,137.31,137.2,41.7765]
[1718870217533,6.0971,137.31,137.21,0.34]
[1718870217731,6.0971,137.31,137.22,0.34]
[1718870217917,6.0971,137.31,137.23,0.51]
[1718870218923,16.6665,137.33,137.22,15.5558]
[1718870219509,16.6665,137.33,137.28,21.42]
[1718870220334,6.4861,137.34,137.28,21.42]
[1718870220530,6.4861,137.34,137.31,21.42]
[1718870220734,6.4861,137.34,137.28,0.17]
[1718870220924,6.4861,137.34,137.3,21.42]
[1718870227716,6.4861,137.34,137.31,0.17]
[1718870230447,21.66,137.37,137.31,0.17]
[1718870230829,6.1533,137.37,137.31,0.17]
[1718870231028,21.7024,137.41,137.34,0.17]
[1718870231227,21.7024,137.41,137.36,21.42]
[1718870234539,6.1533,137.41,137.33,0.17]
[1718870234750,21.869,137.44,137.37,0.17]
[1718870236626,21.869,137.44,137.37,21.59]
[1718870237028,0.17,137.43,137.32,21.42]
[1718870237230,20.34,137.43,137.31,21.42]
[1718870237438,0.17,137.41,137.31,21.42]
[1718870237634,20.51,137.41,137.31,21.42]
[1718870239858,20.51,137.41,137.32,0.17]
[1718870242053,0.17,137.38,137.28,21.42]
[1718870242357,15.5349,137.36,137.26,21.42]
[1718870242527,0.51,137.35,137.26,21.42]
[1718870242729,15.5349,137.36,137.26,21.42]
[1718870242942,0.17,137.35,137.29,21.42]
[1718870243153,15.5349,137.36,137.29,21.42]
[1718870243732,15.5349,137.36,137.3,0.17]
[1718870244232,6.3573,137.37,137.32,21.42]
[1718870244554,6.3573,137.37,137.29,21.42]
[1718870244736,6.3573,137.37,137.3,0.17]
[1718870246442,16.5215,137.36,137.26,21.008102]
[1718870246649,16.5215,137.33,137.24,21.42]
[1718870247536,16.5215,137.33,137.27,21.42]
[1718870248660,6.2392,137.31,137.23,21.42]
[1718870249936,6.2392,137.31,137.27,0.17]
[1718870250549,23.1237,137.33,137.27,0.17]
[1718870252341,6.6022,137.33,137.27,0.17]
[1718870252546,22.2723,137.37,137.3,0.17]
[1718870253062,22.2723,137.37,137.3,0.51]
[1718870253243,22.2723,137.37,137.23,43.7973281]
[1718870253445,22.2723,137.37,137.31,0.17]
[1718870253850,20.0,137.36,137.27,21.42]
[1718870254863,0.51,137.35,137.27,21.42]
[1718870255362,0.51,137.35,137.24,0.34]
[1718870255544,0.51,137.35,137.25,0.17]
[1718870255740,22.7772,137.34,137.19,16.5215]
[1718870255955,26.8908,137.33,137.19,41.5115]
[1718870256166,0.17,137.32,137.19,41.5115]
[1718870257651,0.17,137.32,137.19,46.84250389]
[1718870258370,0.17,137.32,137.17,24.99]
[1718870258371,21.7576,137.31,137.17,24.99]
[1718870258566,0.51,137.3,137.17,24.99]
[1718870258864,6.3822,137.27,137.16,27.05475376]
[1718870259065,6.3822,137.27,137.16,21.7576]
[1718870260972,16.2665,137.26,137.16,21.7576]
[1718870261167,0.17,137.25,137.14,24.99]
[1718870262445,0.17,137.25,137.15,0.34]
[1718870262767,16.2665,137.26,137.16,0.51]
[1718870263065,15.0552,137.29,137.19,25.16]
[1718870263265,15.0552,137.29,137.21,0.17]
[1718870263468,15.7429,137.34,137.24,0.17]
[1718870263665,22.2914,137.34,137.24,0.68]
[1718870263870,22.2914,137.34,137.16,26.589391]
[1718870263871,6.3699,137.33,137.22,29.184354]
[1718870264065,6.3699,137.33,137.23,0.17]
[1718870265060,0.51,137.32,137.23,0.17]
[1718870265260,20.51,137.32,137.23,0.17]
[1718870265666,20.17,137.32,137.22,0.17]
[1718870265861,20.0,137.32,137.22,0.51]
[1718870266162,20.0,137.32,137.22,0.17]
[1718870266971,0.17,137.31,137.22,0.17]
[1718870267152,20.0,137.32,137.22,0.51]
[1718870267352,0.51,137.31,137.22,0.34]
[1718870267549,21.1952,137.3,137.2,15.7429]
[1718870267767,20.34,137.29,137.17,24.99]
[1718870267976,0.17,137.28,137.14,5.19705937]
[1718870268172,0.17,137.28,137.13,24.99]
[1718870269169,6.2837,137.26,137.13,24.99]
[1718870269369,20.51,137.25,137.13,24.99]
[1718870269960,0.17,137.24,137.13,24.99]
[1718870270273,20.51,137.25,137.09,15.463]
[1718870270274,6.4829,137.23,137.09,15.463]
[1718870270476,20.17,137.22,137.09,15.463]
[1718870270660,20.17,137.22,137.12,20.51]
[1718870271062,20.0,137.22,137.12,20.51]
[1718870271450,6.4829,137.23,137.16,24.99]
[1718870271869,21.0645,137.27,137.17,20.0]
[1718870272065,21.0645,137.27,137.18,0.51]
[1718870272255,21.0645,137.27,137.19,0.17]
[1718870273061,21.0645,137.27,137.19,0.34]
[1718870273263,21.0645,137.27,137.2,0.51]
[1718870273468,21.0645,137.27,137.2,0.17]
[1718870273662,21.0645,137.27,137.19,0.17]
[1718870273663,21.0645,137.27,137.19,0.34]
[1718870273869,21.0645,137.27,137.2,0.34]
[1718870274084,21.0645,137.27,137.21,0.17]
[1718870274681,6.5426,137.25,137.03,15.2476]
[1718870274888,6.5426,137.25,137.09,24.99]
[1718870275089,20.34,137.24,137.09,24.99]
[1718870275278,0.17,137.23,137.06,24.99]
[1718870275587,0.17,137.23,137.07,21.89]
[1718870276803,0.17,137.23,137.08,20.0]
[1718870277684,6.5192,137.21,137.04,15.2341]
[1718870277992,20.51,137.2,137.06,24.99]
[1718870278365,6.5192,137.21,137.06,46.88]
[1718870278564,6.5192,137.21,137.11,24.99]
[1718870279066,6.5192,137.21,137.12,0.17]
[1718870279769,6.5192,137.21,137.13,0.17]
[1718870279968,6.5192,137.21,137.13,0.51]
[1718870280170,6.5192,137.21,137.14,0.17]
[1718870280367,6.5192,137.21,137.15,0.17]
[1718870280572,6.5192,137.21,137.15,0.51]
[1718870280767,6.5192,137.21,137.16,0.17]
[1718870281090,6.407,137.25,137.17,0.17]
[1718870281582,6.407,137.25,137.17,0.34]
[1718870281787,6.407,137.25,137.18,0.17]
[1718870282177,6.407,137.25,137.19,0.17]
[1718870282875,6.407,137.25,137.19,0.51]
[1718870283385,6.407,137.25,137.2,0.17]
[1718870283588,6.407,137.25,137.21,0.17]
[1718870283977,6.407,137.25,137.21,0.34]
[1718870284688,6.3491,137.27,137.1,26.606791]
[1718870284887,6.3491,137.27,137.14,24.99]
[1718870285099,6.3491,137.27,137.14,47.0353]
[1718870285685,6.3491,137.27,137.15,21.89]
[1718870286067,6.3491,137.27,137.14,47.0353]
[1718870286269,6.3491,137.27,137.15,20.0]
[1718870288016,6.3491,137.27,137.16,0.34]
[1718870288291,6.3491,137.27,137.16,0.68]
[1718870290590,16.65,137.18,137.1,16.6268]
[1718870290792,6.2308,137.17,137.02,30.27417327]
[1718870291092,26.5708,137.17,137.02,24.99]
[1718870291397,26.4008,137.17,137.02,24.99]
[1718870291576,26.4008,137.17,137.02,46.88]
[1718870291891,26.4008,137.17,137.04,16.6268]
[1718870292095,6.2308,137.17,137.06,46.88]
[1718870292398,6.2308,137.17,137.1,24.99]
[1718870292575,6.3356,137.21,137.1,24.99]
[1718870293497,6.3356,137.21,137.12,0.17]
[1718870294980,6.3356,137.21,137.1,24.99]
[1718870295293,20.51,137.2,137.06,24.99]
[1718870295472,6.3356,137.21,137.06,24.99]
[1718870295671,6.3356,137.21,137.1,24.99]
[1718870296398,6.3356,137.21,137.11,20.0]
[1718870296575,6.3356,137.21,137.12,0.51]
[1718870296883,6.3356,137.21,137.13,0.34]
[1718870297085,6.3356,137.21,137.14,0.51]
[1718870297478,6.3356,137.21,137.15,0.34]
[1718870297793,6.3356,137.21,137.17,0.17]
[1718870300191,7.62272333,137.32,137.17,0.34]
[1718870300192,21.6796,137.31,137.17,0.34]
[1718870300481,20.0,137.3,137.19,0.17]
[1718870300684,20.0,137.3,137.19,0.34]
[1718870301085,20.0,137.3,137.21,0.17]
[1718870301486,21.6796,137.31,137.21,0.34]
[1718870301685,21.6796,137.31,137.23,0.17]
[1718870303082,0.34,137.3,137.23,0.17]
[1718870303284,20.34,137.3,137.23,0.17]
[1718870303484,0.34,137.3,137.23,0.17]
[1718870303683,20.34,137.3,137.23,0.17]
[1718870304090,20.0,137.3,137.23,0.17]
[1718870305104,0.17,137.29,137.23,0.17]
[1718870306404,0.17,137.29,137.19,20.0]
[1718870306606,0.51,137.29,137.18,25.16]
[1718870306915,0.51,137.29,137.18,0.17]
[1718870307402,0.51,137.29,137.12,31.9589]
[1718870307601,0.51,137.29,137.12,53.8489]
[1718870307782,0.51,137.29,137.14,0.17]
[1718870307981,0.51,137.29,137.14,0.68]
[1718870309288,0.51,137.29,137.14,20.68]
[1718870312487,6.6385,137.28,137.14,20.68]
[1718870312687,20.34,137.27,137.14,20.68]
[1718870312893,0.17,137.26,137.14,20.68]
[1718870318092,16.0992,137.25,137.14,20.0]
[1718870318326,16.0992,137.25,137.12,31.9589]
[1718870318327,6.5713,137.2,137.12,15.9484]
[1718870318620,6.5713,137.2,137.05,41.1633]
[1718870318621,0.51,137.19,137.05,41.1633]
[1718870318914,20.51,137.19,137.06,15.8932]
[1718870319215,20.51,137.19,137.05,46.55101253]
[1718870319606,21.4406,137.17,137.04,20.51]
[1718870319808,20.51,137.16,137.04,20.51]
[1718870320103,20.51,137.16,137.03,24.99]
[1718870320493,20.51,137.16,137.03,46.4306]
[1718870320693,20.51,137.16,137.04,0.17]
[1718870321001,20.51,137.16,137.04,0.68]
[1718870321698,20.17,137.16,137.04,0.68]
[1718870321997,20.17,137.16,137.04,20.68]
[1718870322498,21.4406,137.17,137.08,0.17]
[1718870322704,21.4406,137.17,137.08,20.68]
[1718870324917,20.47115675,137.26,137.1,21.89]
[1718870325102,6.1881,137.28,137.19,0.17]
[1718870325301,6.1881,137.28,137.22,24.99]
[1718870325503,21.04473179,137.43,137.23,0.34]
[1718870325504,1.70755189,137.27,137.23,0.34]
[1718870325813,1.70755189,137.27,137.23,21.0791411]
[1718870326004,6.1394,137.33,137.23,21.0791411]
[1718870326618,16.3035,137.32,137.23,20.17]
[1718870326800,0.17,137.31,137.23,0.17]
[1718870328315,20.17,137.31,137.23,0.17]
[1718870328508,0.17,137.3,137.23,0.17]
[1718870328818,0.34,137.3,137.23,0.17]
[1718870333421,0.34,137.3,137.19,20.0]
[1718870333628,0.17,137.29,137.2,0.17]
[1718870333928,0.34,137.29,137.16,20.0]
[1718870334128,6.7293,137.28,137.18,20.0]
[1718870334323,20.34,137.27,137.18,20.0]
[1718870334520,20.0,137.27,137.18,20.0]
[1718870335037,20.0,137.27,137.16,20.0]
[1718870335517,6.5593,137.28,137.17,0.34]
[1718870335822,6.1128,137.31,137.17,0.68]
[1718870336220,6.1128,137.31,137.17,20.68]
[1718870336924,6.1128,137.31,137.19,21.89]
[1718870337114,255.9,137.38,137.2,45.67]
[1718870337115,6.4816,137.35,137.2,45.67]
[1718870337316,20.0,137.34,137.2,45.67]
[1718870337514,20.0,137.34,137.2,67.56]
[1718870337717,6.4816,137.35,137.2,67.56]
[1718870341431,0.17,137.34,137.2,67.56]
[1718870343638,22.8182,137.4,137.23,21.89]
[1718870343844,22.8182,137.4,137.26,0.17]
[1718870344010,6.6422,137.4,137.26,42.57]
[1718870344212,6.6422,137.4,137.3,0.17]
[1718870344538,6.6422,137.4,137.3,20.68]
[1718870347242,6.6422,137.4,137.3,20.51]
[1718870347426,0.17,137.39,137.3,20.17]
[1718870347624,0.51,137.39,137.3,20.17]
[1718870348422,0.17,137.39,137.31,15.3608]
[1718870348626,20.0,137.42,137.32,20.17]
[1718870348932,0.51,137.41,137.32,20.17]
[1718870350848,0.51,137.41,137.32,26.3429]
[1718870351051,0.17,137.41,137.32,26.3429]
[1718870351524,20.0,137.42,137.32,26.3429]
[1718870352842,0.17,137.41,137.32,26.3429]
[1718870356040,0.51,137.41,137.32,26.3429]
[1718870356550,0.17,137.4,137.32,26.3429]
[1718870356847,18.35,137.42,137.32,26.3429]
[1718870357251,0.17,137.41,137.31,15.3608]
[1718870357425,16.02,137.42,137.31,15.3608]
[1718870358050,16.02,137.42,137.29,6.2931]
[1718870358535,0.51,137.41,137.29,6.2931]
[1718870358944,2.38844582,137.4,137.29,6.2931]
[1718870359250,0.51,137.39,137.29,6.2931]
[1718870360234,0.51,137.39,137.3,0.17]
[1718870360951,0.17,137.38,137.29,6.2931]
[1718870363150,0.51,137.39,137.29,6.2931]
[1718870363343,0.51,137.39,137.3,0.17]
[1718870364356,0.51,137.39,137.29,6.2931]
[1718870364531,0.51,137.39,137.3,0.17]
[1718870365258,0.51,137.39,137.29,6.2931]
[1718870365842,0.17,137.38,137.29,6.2931]
[1718870368857,0.17,137.38,137.27,18.923356]
[1718870369028,2.38844582,137.37,137.27,18.923356]
[1718870369233,0.68,137.36,137.27,18.923356]
[1718870370533,0.51,137.36,137.27,18.923356]
[1718870371560,0.51,137.36,137.27,16.0048]
[1718870373957,0.51,137.36,137.28,0.17]
[1718870374463,0.34,137.36,137.28,0.17]
[1718870375974,0.17,137.35,137.28,0.17]
[1718870376343,2.38844582,137.37,137.28,0.17]
[1718870376654,2.38844582,137.37,137.31,16.0157]
[1718870376844,46.52608057,137.39,137.31,16.0157]
[1718870376845,46.52672214,137.39,137.31,16.0157]
[1718870377157,255.9,137.4,137.31,16.0157]
[1718870377358,21.01259615,137.39,137.31,16.0157]
[1718870377656,255.9,137.4,137.31,16.0157]
[1718870377657,261.21242318,137.4,137.31,16.0157]
[1718870377846,21.01267362,137.39,137.31,16.0157]
[1718870378566,20.51,137.38,137.31,16.0157]
[1718870380266,0.51,137.38,137.31,16.0157]
[1718870384169,0.17,137.37,137.31,16.0157]
[1718870391446,0.17,137.37,137.29,6.3085]
[1718870391773,21.59,137.37,137.29,6.3085]
[1718870392068,0.17,137.35,137.29,6.3085]
[1718870394166,20.51,137.36,137.29,6.3085]
[1718870394167,20.0,137.36,137.29,6.3085]
[1718870394372,22.38844582,137.38,137.29,6.3085]
[1718870394578,2.38844582,137.38,137.29,6.3085]
[1718870395466,0.34,137.37,137.29,6.3085]
[1718870395767,2.38844582,137.38,137.3,16.6464]
[1718870396962,0.17,137.37,137.3,16.6464]
[1718870397170,0.51,137.37,137.3,16.6464]
[1718870398967,0.17,137.37,137.3,16.6464]
[1718870399281,20.0,137.39,137.33,16.1059]
[1718870399456,20.0,137.42,137.34,0.17]
[1718870399647,34.14958939,137.44,137.37,0.17]
[1718870399849,20.0,137.43,137.38,16.3724]
[1718870400049,255.9,137.45,137.38,16.3724]
[1718870400255,13.12847558,137.44,137.38,16.3724]
[1718870401381,20.0,137.43,137.38,16.3724]
[1718870401551,20.0,137.49,137.38,16.3724]
[1718870401973,0.34,137.48,137.38,16.3724]
[1718870402273,0.51,137.47,137.38,16.3724]
[1718870402572,0.17,137.46,137.38,16.3724]
[1718870404353,0.34,137.46,137.38,16.3724]
[1718870404555,0.34,137.45,137.38,16.3724]
[1718870404751,0.17,137.44,137.38,16.3724]
[1718870405880,0.34,137.44,137.38,16.3724]
[1718870406052,0.34,137.43,137.38,16.3724]
[1718870406251,0.17,137.42,137.38,16.3724]
[1718870408360,0.34,137.42,137.38,16.3724]
[1718870408561,0.34,137.41,137.38,16.3724]
[1718870408765,0.17,137.4,137.38,16.3724]
[1718870409796,0.34,137.4,137.38,16.3724]
[1718870409963,0.34,137.39,137.38,16.3724]
[1718870410285,0.51,137.39,137.38,16.3724]
[1718870410579,0.51,137.39,137.36,6.1371]
[1718870410580,0.51,137.39,137.36,21.3303]
[1718870410780,0.17,137.38,137.36,21.3303]
[1718870412290,0.17,137.38,137.36,15.1932]
[1718870413062,0.17,137.38,137.32,21.9055]
[1718870413285,0.34,137.38,137.32,21.9055]
[1718870413563,0.17,137.36,137.29,15.654]
[1718870413876,0.34,137.36,137.29,15.654]
[1718870414076,0.34,137.35,137.29,15.654]
[1718870414284,0.17,137.34,137.29,15.654]
[1718870415074,0.34,137.35,137.29,15.654]
[1718870415872,0.17,137.36,137.29,15.654]
[1718870416071,20.0,137.41,137.33,6.0632]
[1718870416398,20.0,137.41,137.35,16.3936]
[1718870416692,34.13179297,137.43,137.35,16.3936]
[1718870417877,2.72844582,137.42,137.35,16.3936]
[1718870418095,22.72844582,137.42,137.35,16.3936]
[1718870418391,2.38844582,137.41,137.35,16.3936]
[1718870418599,0.68,137.4,137.35,16.3936]
[1718870418777,0.68,137.4,137.33,6.0632]
[1718870419093,0.68,137.4,137.32,15.4366]
[1718870419999,2.38844582,137.39,137.32,15.4366]
[1718870420196,0.68,137.38,137.32,15.4366]
[1718870420400,0.51,137.38,137.32,15.4366]
[1718870420582,0.34,137.38,137.32,15.4366]
[1718870422400,0.34,137.37,137.32,15.4366]
[1718870422587,0.34,137.36,137.32,15.4366]
[1718870422787,0.17,137.35,137.32,15.4366]
[1718870424085,0.17,137.35,137.29,6.2273]
[1718870425885,0.34,137.35,137.28,15.2241]
[1718870426208,0.34,137.34,137.28,15.2241]
[1718870426380,0.17,137.33,137.28,15.2241]
[1718870426904,0.34,137.33,137.28,15.2241]
[1718870427109,0.34,137.32,137.28,15.2241]
[1718870427298,0.17,137.31,137.28,15.2241]
[1718870427497,0.17,137.32,137.25,21.8505]
[1718870427817,0.51,137.32,137.25,21.8505]